[Event "December 5 Early 2023"]
[Site "https://www.chess.com"]
[Date "2023.12.05"]
[Round "5"]
[White "Bolat, Inayat"]
[Black "Sokolovsky, Yahli"]
[Result "0-1"]
[Board "57"]
[TimeControl "180+1"]
[WhiteFideId "13733125"]
[BlackFideId "2820242"]
[WhiteElo "2418"]
[BlackElo "2761"]
[WhiteTeam "KAZ"]
[BlackTeam "ISR"]
[WhiteClock "0:00:00"]
[BlackClock "0:00:32"]

1. e4 {[%clk 0:02:58]}  d6 {[%clk 0:02:59]} 2. d4 {[%clk 0:02:56]}  g6 {[%clk 0:03:00]} 3. Nc3 {[%clk 0:02:55]}  Bg7 {[%clk 0:03:01]} 4. Be3 {[%clk 0:02:55]}  a6 {[%clk 0:03:01]} 5. Qd2 {[%clk 0:02:55]}  b5 {[%clk 0:03:01]} 6. O-O-O {[%clk 0:02:54]}  Bb7 {[%clk 0:02:55]} 7. f3 {[%clk 0:02:55]}  Nd7 {[%clk 0:02:54]} 8. h4 {[%clk 0:02:54]}  h5 {[%clk 0:02:51]} 9. Nh3 {[%clk 0:02:53]}  Rc8 {[%clk 0:02:45]} 10. Ng5 {[%clk 0:02:52]}  c5 {[%clk 0:02:44]} 11. e5 {[%clk 0:02:51]}  dxe5 {[%clk 0:02:27]} 12. dxc5 {[%clk 0:02:32]}  Ngf6 {[%clk 0:02:19]} 13. Bd3 {[%clk 0:02:21]}  O-O {[%clk 0:01:59]} 14. g4 {[%clk 0:02:21]}  Nxc5 {[%clk 0:01:53]} 15. Bxc5 {[%clk 0:01:40]}  Rxc5 {[%clk 0:01:54]} 16. Qf2 {[%clk 0:01:21]}  Rxc3 {[%clk 0:01:31]} 17. gxh5 {[%clk 0:00:52]}  Rxd3 {[%clk 0:01:10]} 18. Rxd3 {[%clk 0:00:50]}  Qa5 {[%clk 0:00:58]} 19. hxg6 {[%clk 0:00:45]}  fxg6 {[%clk 0:00:57]} 20. Ra3 {[%clk 0:00:17]}  Qb4 {[%clk 0:00:55]} 21. Rb3 {[%clk 0:00:15]}  Qf4+ {[%clk 0:00:50]} 22. Kb1 {[%clk 0:00:14]}  Ne4 {[%clk 0:00:48]} 23. Nxe4 {[%clk 0:00:07]}  Bxe4 {[%clk 0:00:48]} 24. Rf1 {[%clk 0:00:03]}  Bf5 {[%clk 0:00:49]} 25. Re3 {[%clk 0:00:02]}  Qc4 {[%clk 0:00:48]} 26. Rc3 {[%clk 0:00:02]}  Qf4 {[%clk 0:00:46]} 27. Rc5 {[%clk 0:00:02]}  Rd8 {[%clk 0:00:42]} 28. Re1 {[%clk 0:00:01]}  Rd2 {[%clk 0:00:40]} 29. Qf1 {[%clk 0:00:00]}  Qxh4 {[%clk 0:00:32]} 0-1

[Event "December 5 Early 2023"]
[Site "https://www.chess.com"]
[Date "2023.12.05"]
[Round "5"]
[White "Mamedov, Edgar"]
[Black "Gruzman, Ilya"]
[Result "1-0"]
[Board "60"]
[TimeControl "180+1"]
[WhiteFideId "13739980"]
[BlackFideId "2812703"]
[WhiteElo "2729"]
[BlackElo "2333"]
[WhiteTeam "KAZ"]
[BlackTeam "ISR"]
[WhiteClock "0:00:40"]
[BlackClock "0:00:06"]

1. d4 {[%clk 0:03:00]}  Nf6 {[%clk 0:02:59]} 2. Bg5 {[%clk 0:03:00]}  d5 {[%clk 0:02:58]} 3. Nd2 {[%clk 0:02:59]}  g6 {[%clk 0:02:58]} 4. Bxf6 {[%clk 0:02:58]}  exf6 {[%clk 0:02:59]} 5. e3 {[%clk 0:02:59]}  Bg7 {[%clk 0:02:59]} 6. g3 {[%clk 0:03:00]}  O-O {[%clk 0:02:59]} 7. Bg2 {[%clk 0:03:00]}  b6 {[%clk 0:02:59]} 8. c4 {[%clk 0:03:00]}  Bb7 {[%clk 0:02:59]} 9. Ne2 {[%clk 0:02:58]}  c6 {[%clk 0:02:50]} 10. cxd5 {[%clk 0:02:56]}  cxd5 {[%clk 0:02:51]} 11. Nc3 {[%clk 0:02:56]}  Qd7 {[%clk 0:02:42]} 12. O-O {[%clk 0:02:53]}  Na6 {[%clk 0:02:40]} 13. Rc1 {[%clk 0:02:50]}  Nc7 {[%clk 0:02:39]} 14. Qf3 {[%clk 0:02:40]}  Rfd8 {[%clk 0:02:37]} 15. Ne2 {[%clk 0:02:38]}  Rac8 {[%clk 0:02:37]} 16. Rc3 {[%clk 0:02:34]}  Ne6 {[%clk 0:02:37]} 17. h4 {[%clk 0:02:31]}  h5 {[%clk 0:02:32]} 18. Rfc1 {[%clk 0:02:29]}  Rxc3 {[%clk 0:02:31]} 19. Rxc3 {[%clk 0:02:29]}  Rc8 {[%clk 0:02:31]} 20. Rxc8+ {[%clk 0:02:27]}  Qxc8 {[%clk 0:02:32]} 21. Nc3 {[%clk 0:02:27]}  Nc7 {[%clk 0:02:24]} 22. Qd1 {[%clk 0:02:18]}  Qe6 {[%clk 0:02:19]} 23. Ne2 {[%clk 0:02:14]}  Bh6 {[%clk 0:02:14]} 24. Qa4 {[%clk 0:02:10]}  a6 {[%clk 0:02:12]} 25. Qc2 {[%clk 0:02:05]}  Qd6 {[%clk 0:02:06]} 26. a3 {[%clk 0:02:03]}  Ne6 {[%clk 0:02:01]} 27. b4 {[%clk 0:02:01]}  Bc6 {[%clk 0:01:52]} 28. Nb1 {[%clk 0:01:59]}  Bb5 {[%clk 0:01:51]} 29. Nec3 {[%clk 0:01:57]}  Bc4 {[%clk 0:01:51]} 30. Nd2 {[%clk 0:01:54]}  b5 {[%clk 0:01:46]} 31. Nb3 {[%clk 0:01:53]}  Bf8 {[%clk 0:01:29]} 32. Qd1 {[%clk 0:01:47]}  Qc6 {[%clk 0:01:23]} 33. Na5 {[%clk 0:01:44]}  Qc7 {[%clk 0:01:23]} 34. Nxd5 {[%clk 0:01:40]}  Bxd5 {[%clk 0:01:22]} 35. Bxd5 {[%clk 0:01:41]}  Qc3 {[%clk 0:01:22]} 36. Nb3 {[%clk 0:01:39]}  Bd6 {[%clk 0:01:16]} 37. Nc5 {[%clk 0:01:31]}  Nc7 {[%clk 0:00:57]} 38. Bb3 {[%clk 0:01:27]}  Qb2 {[%clk 0:00:54]} 39. Qd3 {[%clk 0:01:24]}  Kg7 {[%clk 0:00:52]} 40. Bd1 {[%clk 0:01:12]}  Nd5 {[%clk 0:00:47]} 41. Qb3 {[%clk 0:01:06]}  Qc1 {[%clk 0:00:40]} 42. Qxd5 {[%clk 0:01:00]}  Qxd1+ {[%clk 0:00:36]} 43. Kg2 {[%clk 0:01:00]}  Bxg3 {[%clk 0:00:30]} 44. Kxg3 {[%clk 0:00:55]}  Qg4+ {[%clk 0:00:24]} 45. Kh2 {[%clk 0:00:55]}  Qxh4+ {[%clk 0:00:24]} 46. Kg1 {[%clk 0:00:55]}  Qg4+ {[%clk 0:00:23]} 47. Qg2 {[%clk 0:00:54]}  Qd1+ {[%clk 0:00:24]} 48. Kh2 {[%clk 0:00:55]}  Qc1 {[%clk 0:00:23]} 49. d5 {[%clk 0:00:50]}  Qxa3 {[%clk 0:00:15]} 50. Qe4 {[%clk 0:00:45]}  Qb2 {[%clk 0:00:14]} 51. Kg2 {[%clk 0:00:43]}  Qc1 {[%clk 0:00:09]} 52. d6 {[%clk 0:00:43]}  Qd1 {[%clk 0:00:10]} 53. d7 {[%clk 0:00:41]}  f5 {[%clk 0:00:10]} 54. Qd4+ {[%clk 0:00:41]}  Kh7 {[%clk 0:00:06]} 55. Qxd1 {[%clk 0:00:40]} 1-0

[Event "December 5 Early 2023"]
[Site "https://www.chess.com"]
[Date "2023.12.05"]
[Round "5"]
[White "Bluebaum, Matthias"]
[Black "Kuzhylnyi, Oleksandr"]
[Result "1-0"]
[Board "62"]
[TimeControl "180+1"]
[WhiteFideId "24651516"]
[BlackFideId "34110500"]
[WhiteElo "3032"]
[BlackElo "2649"]
[WhiteTeam "GER"]
[BlackTeam "UKR"]
[WhiteClock "0:01:33"]
[BlackClock "0:00:09"]

1. d4 {[%clk 0:03:00]}  d5 {[%clk 0:03:00]} 2. c4 {[%clk 0:03:01]}  c6 {[%clk 0:03:00]} 3. Nf3 {[%clk 0:03:01]}  Nf6 {[%clk 0:03:00]} 4. Nc3 {[%clk 0:03:02]}  e6 {[%clk 0:03:00]} 5. Qc2 {[%clk 0:03:02]}  dxc4 {[%clk 0:03:00]} 6. e4 {[%clk 0:03:03]}  b5 {[%clk 0:03:00]} 7. Be2 {[%clk 0:03:04]}  Be7 {[%clk 0:02:59]} 8. O-O {[%clk 0:03:04]}  O-O {[%clk 0:02:58]} 9. e5 {[%clk 0:03:05]}  Nd5 {[%clk 0:02:58]} 10. Ne4 {[%clk 0:03:05]}  h6 {[%clk 0:02:52]} 11. b3 {[%clk 0:03:06]}  cxb3 {[%clk 0:02:50]} 12. axb3 {[%clk 0:03:07]}  Bb7 {[%clk 0:02:45]} 13. Bd2 {[%clk 0:03:07]}  Nd7 {[%clk 0:02:44]} 14. Qc1 {[%clk 0:03:07]}  Re8 {[%clk 0:02:12]} 15. Bxh6 {[%clk 0:03:01]}  gxh6 {[%clk 0:02:13]} 16. Qxh6 {[%clk 0:03:02]}  f6 {[%clk 0:01:47]} 17. Qg6+ {[%clk 0:02:54]}  Kh8 {[%clk 0:01:46]} 18. Nh4 {[%clk 0:02:38]}  Nf8 {[%clk 0:01:23]} 19. Qh6+ {[%clk 0:02:20]}  Kg8 {[%clk 0:01:22]} 20. Ng6 {[%clk 0:02:21]}  Nxg6 {[%clk 0:01:20]} 21. Qxg6+ {[%clk 0:02:22]}  Kh8 {[%clk 0:01:19]} 22. Rfd1 {[%clk 0:02:11]}  Bf8 {[%clk 0:00:44]} 23. exf6 {[%clk 0:01:34]}  Nf4 {[%clk 0:00:20]} 24. Qg4 {[%clk 0:01:33]}  Nxe2+ {[%clk 0:00:20]} 25. Qxe2 {[%clk 0:01:34]}  Qd5 {[%clk 0:00:19]} 26. Rd3 {[%clk 0:01:34]}  Bh6 {[%clk 0:00:16]} 27. Rh3 {[%clk 0:01:33]}  Kh7 {[%clk 0:00:09]} 28. Qe3 {[%clk 0:01:33]} 1-0

[Event "December 5 Early 2023"]
[Site "https://www.chess.com"]
[Date "2023.12.05"]
[Round "5"]
[White "Ambartsumova, Karina"]
[Black "Donchenko, Alexander"]
[Result "0-1"]
[Board "65"]
[TimeControl "180+1"]
[WhiteFideId "4166299"]
[BlackFideId "24603295"]
[WhiteElo "2626"]
[BlackElo "2905"]
[WhiteTeam "RUS"]
[BlackTeam "GER"]
[WhiteClock "0:00:00"]
[BlackClock "0:00:47"]

1. d4 {[%clk 0:03:00]}  Nf6 {[%clk 0:02:59]} 2. c4 {[%clk 0:03:00]}  g6 {[%clk 0:03:00]} 3. Nc3 {[%clk 0:02:54]}  Bg7 {[%clk 0:03:00]} 4. Nf3 {[%clk 0:02:53]}  O-O {[%clk 0:03:00]} 5. g3 {[%clk 0:02:53]}  Nc6 {[%clk 0:02:59]} 6. Bg2 {[%clk 0:02:49]}  d5 {[%clk 0:02:58]} 7. cxd5 {[%clk 0:02:47]}  Nxd5 {[%clk 0:02:59]} 8. e4 {[%clk 0:02:46]}  Nxc3 {[%clk 0:02:58]} 9. bxc3 {[%clk 0:02:47]}  e5 {[%clk 0:02:59]} 10. d5 {[%clk 0:02:46]}  Na5 {[%clk 0:02:58]} 11. Qe2 {[%clk 0:02:39]}  c6 {[%clk 0:02:53]} 12. c4 {[%clk 0:02:37]}  b5 {[%clk 0:02:51]} 13. cxb5 {[%clk 0:02:24]}  cxd5 {[%clk 0:02:51]} 14. Bd2 {[%clk 0:02:05]}  dxe4 {[%clk 0:02:40]} 15. Ng5 {[%clk 0:01:28]}  f5 {[%clk 0:02:40]} 16. O-O {[%clk 0:01:21]}  Kh8 {[%clk 0:02:36]} 17. Rfd1 {[%clk 0:01:11]}  Nb7 {[%clk 0:02:22]} 18. h4 {[%clk 0:01:00]}  Qf6 {[%clk 0:01:38]} 19. Bb4 {[%clk 0:00:51]}  Re8 {[%clk 0:01:33]} 20. Qc4 {[%clk 0:00:47]}  h6 {[%clk 0:01:33]} 21. Nf7+ {[%clk 0:00:39]}  Kh7 {[%clk 0:01:33]} 22. Nd6 {[%clk 0:00:39]}  Nxd6 {[%clk 0:01:32]} 23. Bxd6 {[%clk 0:00:33]}  Be6 {[%clk 0:01:28]} 24. Qb4 {[%clk 0:00:31]}  Bg8 {[%clk 0:01:22]} 25. a4 {[%clk 0:00:30]}  g5 {[%clk 0:01:10]} 26. hxg5 {[%clk 0:00:29]}  Qxg5 {[%clk 0:01:11]} 27. a5 {[%clk 0:00:26]}  e3 {[%clk 0:01:05]} 28. Bxa8 {[%clk 0:00:22]}  exf2+ {[%clk 0:01:04]} 29. Kxf2 {[%clk 0:00:22]}  Rxa8 {[%clk 0:01:05]} 30. b6 {[%clk 0:00:21]}  f4 {[%clk 0:01:01]} 31. gxf4 {[%clk 0:00:20]}  Qh4+ {[%clk 0:01:00]} 32. Kg1 {[%clk 0:00:11]}  Qg3+ {[%clk 0:00:58]} 33. Kh1 {[%clk 0:00:10]}  Qf3+ {[%clk 0:00:58]} 34. Kg1 {[%clk 0:00:10]}  axb6 {[%clk 0:00:57]} 35. Bxe5 {[%clk 0:00:04]}  Bxe5 {[%clk 0:00:48]} 36. fxe5 {[%clk 0:00:00]}  Bf7 {[%clk 0:00:47]} 0-1

[Event "December 5 Early 2023"]
[Site "https://www.chess.com"]
[Date "2023.12.05"]
[Round "5"]
[White "Gokerkan, Cem Kaan"]
[Black "Espinoza Villanueva, Rodrigo"]
[Result "1-0"]
[Board "66"]
[TimeControl "180+1"]
[WhiteFideId "6336760"]
[BlackFideId "5140188"]
[WhiteElo "2864"]
[BlackElo "2610"]
[WhiteTeam "TUR"]
[BlackTeam "MEX"]
[WhiteClock "0:01:43"]
[BlackClock "0:01:19"]

1. e4 {[%clk 0:03:00]}  c5 {[%clk 0:02:58]} 2. Nf3 {[%clk 0:03:00]}  d6 {[%clk 0:02:59]} 3. d4 {[%clk 0:03:00]}  cxd4 {[%clk 0:03:00]} 4. Nxd4 {[%clk 0:03:01]}  Nf6 {[%clk 0:02:59]} 5. Nc3 {[%clk 0:03:02]}  a6 {[%clk 0:02:57]} 6. Bc4 {[%clk 0:03:02]}  e6 {[%clk 0:02:57]} 7. Be3 {[%clk 0:03:01]}  Nbd7 {[%clk 0:02:52]} 8. Bxe6 {[%clk 0:03:00]}  fxe6 {[%clk 0:02:47]} 9. Nxe6 {[%clk 0:03:00]}  Qa5 {[%clk 0:02:42]} 10. O-O {[%clk 0:02:39]}  Nc5 {[%clk 0:02:20]} 11. Nxf8 {[%clk 0:02:35]}  Rxf8 {[%clk 0:02:15]} 12. Qxd6 {[%clk 0:02:35]}  Ne6 {[%clk 0:02:11]} 13. Nd5 {[%clk 0:01:54]}  Nxd5 {[%clk 0:02:02]} 14. exd5 {[%clk 0:01:54]}  Qc7 {[%clk 0:02:02]} 15. Qb4 {[%clk 0:01:49]}  Qe7 {[%clk 0:01:22]} 16. Qxe7+ {[%clk 0:01:42]}  Kxe7 {[%clk 0:01:21]} 17. dxe6 {[%clk 0:01:43]}  Bxe6 {[%clk 0:01:19]} 18. Bc5+ {[%clk 0:01:43]} 1-0

[Event "December 5 Early 2023"]
[Site "https://www.chess.com"]
[Date "2023.12.05"]
[Round "5"]
[White "Bacrot, Etienne"]
[Black "Novoselov, Roman"]
[Result "1-0"]
[Board "68"]
[TimeControl "180+1"]
[WhiteFideId "605506"]
[BlackFideId "4135067"]
[WhiteElo "2829"]
[BlackElo "2570"]
[WhiteTeam "FRA"]
[BlackTeam "RUS"]
[WhiteClock "0:00:04"]
[BlackClock "0:00:08"]

1. e4 {[%clk 0:03:00]}  e6 {[%clk 0:02:58]} 2. d3 {[%clk 0:02:59]}  d5 {[%clk 0:02:56]} 3. Nd2 {[%clk 0:02:59]}  Nf6 {[%clk 0:02:57]} 4. g3 {[%clk 0:02:59]}  Nbd7 {[%clk 0:02:50]} 5. Bg2 {[%clk 0:02:59]}  c5 {[%clk 0:02:49]} 6. Ngf3 {[%clk 0:02:59]}  Qc7 {[%clk 0:02:48]} 7. O-O {[%clk 0:02:59]}  Be7 {[%clk 0:02:48]} 8. Re1 {[%clk 0:02:58]}  O-O {[%clk 0:02:46]} 9. c3 {[%clk 0:02:51]}  Re8 {[%clk 0:02:29]} 10. e5 {[%clk 0:02:48]}  Ng4 {[%clk 0:02:23]} 11. d4 {[%clk 0:02:49]}  Nh6 {[%clk 0:02:22]} 12. Nf1 {[%clk 0:02:47]}  Nf5 {[%clk 0:02:18]} 13. g4 {[%clk 0:02:45]}  Nh6 {[%clk 0:02:11]} 14. h3 {[%clk 0:02:39]}  b5 {[%clk 0:02:05]} 15. Ng3 {[%clk 0:02:38]}  a5 {[%clk 0:01:47]} 16. Nh5 {[%clk 0:02:34]}  Bf8 {[%clk 0:01:43]} 17. Bxh6 {[%clk 0:02:13]}  gxh6 {[%clk 0:01:44]} 18. Qd2 {[%clk 0:02:13]}  b4 {[%clk 0:01:40]} 19. Rac1 {[%clk 0:02:08]}  bxc3 {[%clk 0:01:38]} 20. bxc3 {[%clk 0:02:07]}  Ba6 {[%clk 0:01:37]} 21. g5 {[%clk 0:02:00]}  hxg5 {[%clk 0:01:29]} 22. Qxg5+ {[%clk 0:01:59]}  Kh8 {[%clk 0:01:30]} 23. Qf4 {[%clk 0:01:44]}  Bd3 {[%clk 0:01:15]} 24. Nh4 {[%clk 0:01:00]}  Bg6 {[%clk 0:01:05]} 25. Ng3 {[%clk 0:00:46]}  Bg7 {[%clk 0:00:50]} 26. c4 {[%clk 0:00:45]}  dxc4 {[%clk 0:00:27]} 27. Bxa8 {[%clk 0:00:43]}  Rxa8 {[%clk 0:00:28]} 28. Rxc4 {[%clk 0:00:40]}  Bd3 {[%clk 0:00:25]} 29. Qf3 {[%clk 0:00:35]}  Bxc4 {[%clk 0:00:20]} 30. Qxa8+ {[%clk 0:00:35]}  Bf8 {[%clk 0:00:20]} 31. dxc5 {[%clk 0:00:22]}  Bd5 {[%clk 0:00:17]} 32. Qe8 {[%clk 0:00:20]}  Kg7 {[%clk 0:00:16]} 33. Nh5+ {[%clk 0:00:16]}  Kh6 {[%clk 0:00:13]} 34. Nf6 {[%clk 0:00:15]}  Nxf6 {[%clk 0:00:13]} 35. Qxf8+ {[%clk 0:00:15]}  Kg5 {[%clk 0:00:12]} 36. Qg7+ {[%clk 0:00:14]}  Kxh4 {[%clk 0:00:13]} 37. Qxf6+ {[%clk 0:00:15]}  Kh5 {[%clk 0:00:11]} 38. Re3 {[%clk 0:00:08]}  Qxc5 {[%clk 0:00:10]} 39. Qxf7+ {[%clk 0:00:08]}  Kh6 {[%clk 0:00:11]} 40. Qf4+ {[%clk 0:00:08]}  Kh5 {[%clk 0:00:11]} 41. Qg4+ {[%clk 0:00:09]}  Kh6 {[%clk 0:00:10]} 42. Qh4+ {[%clk 0:00:09]}  Kg6 {[%clk 0:00:08]} 43. Rg3+ {[%clk 0:00:07]}  Kf5 {[%clk 0:00:08]} 44. Rg5# {[%clk 0:00:04]} 1-0

[Event "December 5 Early 2023"]
[Site "https://www.chess.com"]
[Date "2023.12.05"]
[Round "5"]
[White "IM_ArthurDW08"]
[Black "Mendez Fortes, Eduardo Jesus"]
[Result "1-0"]
[Board "69"]
[TimeControl "180+1"]
[BlackFideId "3502376"]
[WhiteElo "2802"]
[BlackElo "2567"]
[BlackTeam "CUB"]
[WhiteClock "0:00:55"]
[BlackClock "0:01:39"]

1. e4 {[%clk 0:02:57]}  e5 {[%clk 0:02:59]} 2. Nf3 {[%clk 0:02:57]}  Nc6 {[%clk 0:02:59]} 3. Bb5 {[%clk 0:02:57]}  a6 {[%clk 0:03:00]} 4. Ba4 {[%clk 0:02:57]}  Nf6 {[%clk 0:03:00]} 5. d3 {[%clk 0:02:58]}  b5 {[%clk 0:03:00]} 6. Bb3 {[%clk 0:02:58]}  Bc5 {[%clk 0:03:01]} 7. Bg5 {[%clk 0:02:49]}  h6 {[%clk 0:03:00]} 8. Bh4 {[%clk 0:02:50]}  d6 {[%clk 0:03:00]} 9. c3 {[%clk 0:02:49]}  Bb6 {[%clk 0:02:53]} 10. a4 {[%clk 0:02:45]}  Rb8 {[%clk 0:02:51]} 11. Nbd2 {[%clk 0:02:27]}  g5 {[%clk 0:02:46]} 12. Bg3 {[%clk 0:02:25]}  Qe7 {[%clk 0:02:41]} 13. O-O {[%clk 0:02:13]}  Rg8 {[%clk 0:02:37]} 14. axb5 {[%clk 0:02:00]}  axb5 {[%clk 0:02:36]} 15. d4 {[%clk 0:01:55]}  h5 {[%clk 0:02:35]} 16. dxe5 {[%clk 0:01:45]}  dxe5 {[%clk 0:02:36]} 17. Bd5 {[%clk 0:01:45]}  Bd7 {[%clk 0:02:29]} 18. Bxc6 {[%clk 0:01:33]}  Bxc6 {[%clk 0:02:30]} 19. Bxe5 {[%clk 0:01:33]}  g4 {[%clk 0:02:25]} 20. Nd4 {[%clk 0:01:23]}  Qxe5 {[%clk 0:01:48]} 21. Nxc6 {[%clk 0:01:22]}  Qd6 {[%clk 0:01:47]} 22. Nxb8 {[%clk 0:01:00]}  h4 {[%clk 0:01:42]} 23. e5 {[%clk 0:00:55]}  Qc5 {[%clk 0:01:41]} 24. exf6 {[%clk 0:00:53]}  g3 {[%clk 0:01:41]} 25. Qe2+ {[%clk 0:00:53]}  Kf8 {[%clk 0:01:40]} 26. Qe7+ {[%clk 0:00:53]}  Qxe7 {[%clk 0:01:40]} 27. fxe7+ {[%clk 0:00:54]}  Kxe7 {[%clk 0:01:39]} 28. Nc6+ {[%clk 0:00:55]} 1-0

[Event "December 5 Early 2023"]
[Site "https://www.chess.com"]
[Date "2023.12.05"]
[Round "5"]
[White "Tan, Jonathan"]
[Black "Karthik Rajaa"]
[Result "1-0"]
[Board "75"]
[TimeControl "180+1"]
[WhiteFideId "5200482"]
[BlackFideId "25035215"]
[WhiteElo "2502"]
[BlackElo "2713"]
[WhiteTeam "PHI"]
[BlackTeam "IND"]
[WhiteClock "0:01:07"]
[BlackClock "0:00:50"]

1. d4 {[%clk 0:03:00]}  Nf6 {[%clk 0:02:59]} 2. Nc3 {[%clk 0:03:00]}  d5 {[%clk 0:02:59]} 3. Bf4 {[%clk 0:03:00]}  e6 {[%clk 0:03:00]} 4. Nb5 {[%clk 0:03:00]}  Bb4+ {[%clk 0:03:00]} 5. c3 {[%clk 0:03:00]}  Ba5 {[%clk 0:03:00]} 6. a4 {[%clk 0:02:59]}  a6 {[%clk 0:02:59]} 7. b4 {[%clk 0:02:58]}  Nc6 {[%clk 0:02:59]} 8. Na3 {[%clk 0:02:42]}  Bb6 {[%clk 0:02:59]} 9. Nf3 {[%clk 0:02:38]}  Ne7 {[%clk 0:02:42]} 10. e3 {[%clk 0:02:32]}  Ng6 {[%clk 0:02:40]} 11. Bg3 {[%clk 0:02:24]}  Ne4 {[%clk 0:02:40]} 12. Qc2 {[%clk 0:02:19]}  a5 {[%clk 0:02:36]} 13. Bd3 {[%clk 0:02:05]}  Nxc3 {[%clk 0:02:33]} 14. bxa5 {[%clk 0:01:56]}  Bxa5 {[%clk 0:02:32]} 15. O-O {[%clk 0:01:57]}  Bd7 {[%clk 0:02:14]} 16. Nb5 {[%clk 0:01:51]}  Nxb5 {[%clk 0:02:13]} 17. axb5 {[%clk 0:01:46]}  c6 {[%clk 0:02:05]} 18. Bd6 {[%clk 0:01:30]}  Bc7 {[%clk 0:01:46]} 19. Bxc7 {[%clk 0:01:26]}  Rxa1 {[%clk 0:01:23]} 20. Bxd8 {[%clk 0:01:24]}  Rxf1+ {[%clk 0:01:23]} 21. Kxf1 {[%clk 0:01:23]}  Kxd8 {[%clk 0:01:24]} 22. Bxg6 {[%clk 0:01:21]}  hxg6 {[%clk 0:01:23]} 23. b6 {[%clk 0:01:20]}  f6 {[%clk 0:00:51]} 24. Qxg6 {[%clk 0:01:11]}  Rg8 {[%clk 0:00:50]} 25. Qf7 {[%clk 0:01:07]} 1-0

[Event "December 5 Early 2023"]
[Site "https://www.chess.com"]
[Date "2023.12.05"]
[Round "5"]
[White "Krzywda, Andrzej"]
[Black "Poormosavi, Seyed Kian"]
[Result "1-0"]
[Board "76"]
[TimeControl "180+1"]
[WhiteFideId "1114565"]
[BlackFideId "12585807"]
[WhiteElo "2501"]
[BlackElo "2690"]
[WhiteTeam "POL"]
[BlackTeam "IRI"]
[WhiteClock "0:00:12"]
[BlackClock "0:00:55"]

1. e4 {[%clk 0:03:00]}  c6 {[%clk 0:02:53]} 2. d4 {[%clk 0:03:00]}  d5 {[%clk 0:02:49]} 3. e5 {[%clk 0:03:01]}  c5 {[%clk 0:02:49]} 4. Nf3 {[%clk 0:03:01]}  Bg4 {[%clk 0:02:48]} 5. dxc5 {[%clk 0:02:58]}  Nc6 {[%clk 0:02:49]} 6. c3 {[%clk 0:02:53]}  e6 {[%clk 0:02:49]} 7. Be3 {[%clk 0:02:47]}  Nge7 {[%clk 0:02:40]} 8. Bb5 {[%clk 0:02:43]}  Nf5 {[%clk 0:02:29]} 9. Qa4 {[%clk 0:02:20]}  Bxf3 {[%clk 0:02:13]} 10. Bxc6+ {[%clk 0:02:13]}  bxc6 {[%clk 0:02:11]} 11. Qxc6+ {[%clk 0:02:12]}  Ke7 {[%clk 0:02:12]} 12. Qb7+ {[%clk 0:02:12]}  Ke8 {[%clk 0:02:10]} 13. Qc6+ {[%clk 0:01:56]}  Ke7 {[%clk 0:02:09]} 14. Qb7+ {[%clk 0:01:28]}  Qd7 {[%clk 0:02:09]} 15. Bg5+ {[%clk 0:01:20]}  f6 {[%clk 0:02:08]} 16. exf6+ {[%clk 0:01:20]}  gxf6 {[%clk 0:02:09]} 17. Bxf6+ {[%clk 0:01:20]}  Kxf6 {[%clk 0:02:04]} 18. Qxd7 {[%clk 0:01:19]}  Bxg2 {[%clk 0:02:00]} 19. Rg1 {[%clk 0:01:11]}  Nh4 {[%clk 0:01:43]} 20. Nd2 {[%clk 0:01:10]}  Nf3+ {[%clk 0:01:43]} 21. Nxf3 {[%clk 0:01:10]}  Bxf3 {[%clk 0:01:44]} 22. Rg3 {[%clk 0:01:06]}  Bh5 {[%clk 0:01:41]} 23. Re3 {[%clk 0:01:01]}  Re8 {[%clk 0:01:36]} 24. Qxa7 {[%clk 0:00:55]}  Bh6 {[%clk 0:01:35]} 25. Rh3 {[%clk 0:00:54]}  Kg6 {[%clk 0:01:23]} 26. Rg3+ {[%clk 0:00:46]}  Kf6 {[%clk 0:01:20]} 27. c6 {[%clk 0:00:41]}  Bf4 {[%clk 0:01:18]} 28. Qd4+ {[%clk 0:00:37]}  e5 {[%clk 0:01:17]} 29. Qxd5 {[%clk 0:00:37]}  Rd8 {[%clk 0:01:16]} 30. Qb5 {[%clk 0:00:19]}  Bxg3 {[%clk 0:01:05]} 31. hxg3 {[%clk 0:00:18]}  Bg4 {[%clk 0:01:03]} 32. c7 {[%clk 0:00:16]}  Rd6 {[%clk 0:01:02]} 33. Qc5 {[%clk 0:00:15]}  Ra6 {[%clk 0:00:59]} 34. f3 {[%clk 0:00:14]}  Bd7 {[%clk 0:00:57]} 35. Rd1 {[%clk 0:00:12]}  Rc6 {[%clk 0:00:57]} 36. Rd6+ {[%clk 0:00:13]}  Rxd6 {[%clk 0:00:56]} 37. Qxd6+ {[%clk 0:00:13]}  Be6 {[%clk 0:00:57]} 38. Qd8+ {[%clk 0:00:13]}  Kg7 {[%clk 0:00:56]} 39. Qe7+ {[%clk 0:00:12]}  Bf7 {[%clk 0:00:57]} 40. Qxe5+ {[%clk 0:00:12]}  Kg6 {[%clk 0:00:55]} 41. Qxh8 {[%clk 0:00:12]} 1-0